fUSD/lending_fUSD_20240119
["ID","MTS","AMOUNT","RATE_DAILY","PERIOD"]
[312149524,1705669868646,-500.0,0.00022739,2]
[312149525,1705669868657,-500.0,0.00022739,2]
[312149526,1705669868668,-852.32,0.00022739,2]
[312149527,1705669868678,-541.18,0.00022739,2]
[312149528,1705669868689,-774.53,0.00022739,2]
[312149529,1705669868700,-623.89,0.00022739,2]
[312149530,1705669868710,-500.0,0.00022739,2]
[312149531,1705669868721,-910.14,0.00022739,2]
[312149532,1705669868732,-500.0,0.00022739,2]
[312149533,1705669868742,-500.0,0.00022739,2]
[312149534,1705669868753,-918.52,0.00022739,2]
[312149535,1705669868764,-1225.46,0.00022739,2]
[312149536,1705669868774,-1110.62,0.00022739,2]
[312149537,1705669868787,-500.0,0.00022739,2]
[312149538,1705669868803,-408.36305427,0.00022739,2]
[312149539,1705669868814,-500.0,0.00022739,2]
[312149540,1705669868825,-500.0,0.00022739,2]
[312149541,1705669868838,-722.75,0.00022739,2]
[312149542,1705669868849,-681.27,0.00022739,2]
[312149543,1705669868860,-720.2,0.00022739,2]
[312149544,1705669868872,-1281.21,0.00022739,2]
[312149545,1705669868885,-960.8,0.00022739,2]
[312149546,1705669868896,-500.0,0.00022739,2]
[312149547,1705669868907,-500.0,0.00022739,2]
[312149548,1705669868918,-1200.27,0.00022739,2]
[312149549,1705669868928,-500.0,0.00022739,2]
[312149550,1705669868939,-996.2,0.00022739,2]
[312149551,1705669868949,-500.0,0.00022739,2]
[312149552,1705669868959,-733.48,0.00022739,2]
[312149553,1705669868969,-717.41,0.00022739,2]
[312149554,1705669868979,-500.0,0.00022739,2]
[312149555,1705669868990,-500.0,0.00022739,2]
[312149556,1705669869000,-567.28,0.00022739,2]
[312149557,1705669869011,-500.0,0.00022739,2]
[312149558,1705669869022,-544.36,0.00022739,2]
[312149559,1705669869032,-500.0,0.00022739,2]
[312149560,1705669869043,-500.0,0.00022739,2]
[312149561,1705669869053,-1000.0,0.00022739,2]
[312149562,1705669869063,-500.0,0.00022739,2]
[312149563,1705669869074,-500.0,0.00022739,2]
[312149564,1705669869084,-508.81,0.00022739,2]
[312149565,1705669869095,-500.0,0.00022739,2]
[312149566,1705669869105,-500.0,0.00022739,2]
[312149567,1705669869115,-500.0,0.00022739,2]
[312149568,1705669869125,-500.0,0.00022739,2]
[312149569,1705669869136,-500.0,0.00022739,2]
[312149570,1705669869146,-685.86,0.00022739,2]
[312149571,1705669869157,-500.0,0.00022739,2]
[312149572,1705669869167,-864.15,0.00022739,2]
[312149573,1705669869178,-500.0,0.00022739,2]
[312149574,1705669869189,-502.08,0.00022739,2]
[312149575,1705669869200,-504.94,0.00022739,2]
[312149576,1705669869210,-854.99,0.00022739,2]
[312149577,1705669869222,-606.04,0.00022739,2]
[312149578,1705669869232,-500.0,0.00022739,2]
[312149579,1705669869243,-851.01,0.00022739,2]
[312149580,1705669869253,-571.27,0.00022739,2]
[312149581,1705669869264,-1336.55,0.00022739,2]
[312149582,1705669869274,-500.0,0.00022739,2]
[312149583,1705669869285,-500.0,0.00022739,2]
[312149584,1705669869296,-500.0,0.00022739,2]
[312149585,1705669869307,-953.61,0.00022739,2]
[312149586,1705669869318,-536.63,0.00022739,2]
[312149587,1705669869329,-500.0,0.00022739,2]
[312149588,1705669869339,-770.79,0.00022739,2]
[312149589,1705669869352,-500.0,0.00022739,2]
[312149590,1705669869363,-662.32,0.00022739,2]
[312149591,1705669869374,-484.46430958,0.00022739,2]
[312149592,1705669869384,-811.51,0.00022739,2]
[312149593,1705669869395,-500.0,0.00022739,2]
[312149594,1705669869406,-500.0,0.00022739,2]
[312149595,1705669869417,-845.2,0.00022739,2]
[312149596,1705669869427,-500.0,0.00022739,2]
[312149597,1705669869438,-788.16,0.00022739,2]
[312149598,1705669869449,-500.0,0.00022739,2]
[312149599,1705669869460,-653.02,0.00022739,2]
[312149600,1705669869471,-500.0,0.00022739,2]
[312149601,1705669869481,-1258.44,0.00022739,2]
[312149602,1705669869491,-500.0,0.00022739,2]
[312149603,1705669869502,-618.52,0.00022739,2]
[312149604,1705669869513,-500.0,0.00022739,2]
[312149605,1705669869523,-500.0,0.00022739,2]
[312149606,1705669869533,-530.48,0.00022739,2]
[312149607,1705669869543,-332.81331016,0.00022739,2]
[312149608,1705669869554,-500.0,0.00022739,2]
[312149609,1705669869565,-500.0,0.00022739,2]
[312149610,1705669869576,-500.0,0.00022739,2]
[312149611,1705669869587,-511.4249444,0.00022739,2]
[312149612,1705669869598,-640.03,0.00022739,2]
[312149613,1705669869609,-769.35,0.00022739,2]
[312149614,1705669869619,-570.39,0.00022739,2]
[312149615,1705669869630,-723.58,0.00022739,2]
[312149616,1705669869642,-1088.57,0.00022739,2]
[312149617,1705669869652,-1400.81,0.00022739,2]
[312149618,1705669869662,-500.0,0.00022739,2]
[312149619,1705669869673,-613.93,0.00022739,2]
[312149620,1705669869683,-500.0,0.00022739,2]
[312149621,1705669869693,-500.0,0.00022739,2]
[312149622,1705669869704,-749.16,0.00022739,2]
[312149623,1705669869714,-739.73,0.00022739,2]
[312149624,1705669869725,-500.0,0.00022739,2]
[312149625,1705669869735,-1591.86,0.00022739,2]
[312149626,1705669869745,-500.0,0.00022739,2]
[312149627,1705669869757,-500.0,0.00022739,2]
[312149628,1705669869767,-520.91,0.00022739,2]
[312149629,1705669869777,-269.17333671,0.00022739,2]
[312149630,1705669869788,-500.0,0.00022739,2]
[312149631,1705669869800,-500.0,0.00022739,2]
[312149632,1705669869810,-556.82,0.00022739,2]
[312149633,1705669869821,-500.0,0.00022739,2]
[312149634,1705669869831,-500.0,0.00022739,2]
[312149635,1705669869841,-657.02,0.00022739,2]
[312149636,1705669869852,-903.89,0.00022739,2]
[312149637,1705669869862,-1000.86,0.00022739,2]
[312149638,1705669869874,-500.0,0.00022739,2]
[312149639,1705669869885,-619.43,0.00022739,2]
[312149640,1705669869895,-759.91,0.00022739,2]
[312149641,1705669869905,-549.59,0.00022739,2]
[312149642,1705669869916,-500.0,0.00022739,2]
[312149643,1705669869927,-754.71,0.00022739,2]
[312149644,1705669869938,-500.0,0.00022739,2]
[312149645,1705669869949,-500.0,0.00022739,2]
[312149646,1705669869960,-500.0,0.00022739,2]
[312149647,1705669869971,-1295.82,0.00022739,2]
[312149648,1705669869981,-500.0,0.00022739,7]
[312149649,1705669869991,-500.0,0.00022739,2]
[312149650,1705669870002,-536.32,0.00022739,2]
[312149651,1705669870013,-697.99,0.00022739,2]
[312149652,1705669870023,-637.25,0.00022739,2]
[312149653,1705669870033,-971.36,0.00022739,2]
[312149654,1705669870043,-585.76,0.00022739,2]
[312149655,1705669870054,-500.0,0.00022739,2]
[312149656,1705669870063,-508.57,0.00022739,2]
[312149657,1705669870074,-500.0,0.00022739,2]
[312149658,1705669870084,-516.49,0.00022739,2]
[312149659,1705669870094,-500.0,0.00022739,2]
[312149660,1705669870105,-500.0,0.00022739,2]
[312149661,1705669870116,-674.4,0.00022739,2]
[312149662,1705669870126,-1174.25,0.00022739,2]
[312149663,1705669870136,-500.0,0.00022739,2]
[312149664,1705669870146,-500.0,0.00022739,2]
[312149665,1705669870156,-2577.21,0.00022739,2]
[312149666,1705669870166,-551.89,0.00022739,2]
[312149667,1705669870177,-1004.34,0.00022739,2]
[312149668,1705669870187,-500.0,0.00022739,2]
[312149669,1705669870198,-500.0,0.00022739,2]
[312149670,1705669870208,-500.0,0.00022739,2]
[312149671,1705669870219,-595.37,0.00022739,2]
[312149672,1705669870229,-500.0,0.00022739,2]
[312149673,1705669870240,-975.94,0.00022739,2]
[312149674,1705669870250,-1384.81,0.00022739,2]
[312149675,1705669870261,-500.0,0.00022739,2]
[312149676,1705669870272,-300.0,0.00022739,2]
[312149677,1705669870283,-2155.6,0.00022739,2]
[312149678,1705669870293,-500.0,0.00022739,2]
[312149679,1705669870304,-607.66,0.00022739,2]
[312149680,1705669870315,-500.0,0.00022739,2]
[312149681,1705669870423,-993.96,0.00022739,2]
[312149682,1705669870434,-500.0,0.00022739,2]
[312149683,1705669870445,-500.0,0.00022739,2]
[312149684,1705669870455,-500.0,0.00022739,2]
[312149685,1705669870466,-500.0,0.00022739,2]
[312149686,1705669870476,-1491.73,0.00022739,2]
[312149687,1705669870486,-500.0,0.00022739,2]
[312149688,1705669870497,-500.0,0.00022739,2]
[312149689,1705669870507,-500.0,0.00022739,2]
[312149690,1705669870518,-500.0,0.00022739,2]
[312149691,1705669870528,-2597.14,0.00022739,2]
[312149692,1705669870538,-884.11,0.00022739,2]
[312149693,1705669870548,-500.0,0.00022739,2]
[312149694,1705669870559,-702.17,0.00022739,2]
[312149695,1705669870569,-500.0,0.00022739,2]
[312149696,1705669870580,-500.0,0.00022739,2]
[312149697,1705669870590,-1278.53,0.00022739,2]
[312149698,1705669870601,-509.99,0.00022739,2]
[312149699,1705669870611,-1304.44,0.00022739,2]
[312149700,1705669870621,-644.49,0.00022739,2]
[312149701,1705669870632,-500.0,0.00022739,2]
[312149702,1705669870642,-4136.35,0.00022739,2]
[312149703,1705669870652,-756.21,0.00022739,2]
[312149704,1705669870662,-500.0,0.00022739,2]
[312149705,1705669870672,-1691.78,0.00022739,2]
[312149706,1705669870683,-957.56,0.00022739,2]
[312149707,1705669870692,-500.0,0.00022739,2]
[312149708,1705669870702,-500.0,0.00022739,2]
[312149709,1705669870713,-500.0,0.00022739,2]
[312149710,1705669870723,-561.8,0.00022739,2]
[312149711,1705669870733,-500.0,0.00022739,2]
[312149712,1705669870743,-1210.49,0.00022739,2]
[312149713,1705669870754,-557.2,0.00022739,2]
[312149714,1705669870764,-500.0,0.00022739,2]
[312149715,1705669870774,-500.0,0.00022739,2]
[312149716,1705669870784,-1263.43,0.00022739,2]
[312149717,1705669870797,-970.19,0.00022739,2]
[312149718,1705669870807,-3690.4,0.00022739,2]
[312149719,1705669870817,-500.0,0.00022739,2]
[312149720,1705669870827,-790.63,0.00022739,2]
[312149721,1705669870838,-500.0,0.00022739,2]
[312149722,1705669870848,-500.0,0.00022739,2]
[312149723,1705669870857,-500.0,0.00022739,2]
[312149724,1705669870867,-702.42,0.00022739,2]
[312149725,1705669870879,-3924.47,0.00022739,2]
[312149726,1705669870889,-500.0,0.00022739,2]
[312149727,1705669870900,-973.67,0.00022739,2]
[312149728,1705669870909,-598.21,0.00022739,2]
[312149729,1705669870920,-500.0,0.00022739,2]
[312149730,1705669870930,-1520.21,0.00022739,2]
[312149731,1705669870940,-562.92,0.00022739,2]
[312149732,1705669870950,-500.0,0.00022739,2]
[312149733,1705669870959,-4002.65,0.00022739,2]
[312149734,1705669870968,-1299.47,0.00022739,2]
[312149735,1705669870978,-1988.16,0.00022739,5]
[312149736,1705669870987,-687.96,0.00022739,2]
[312149737,1705669870997,-821.93,0.00022739,2]
[312149738,1705669871007,-1689.55,0.00022739,2]
[312149739,1705669871017,-574.45,0.00022739,2]
[312149740,1705669871027,-500.0,0.00022739,2]
[312149741,1705669871037,-621.19,0.00022739,2]
[312149742,1705669871046,-2788.01,0.00022739,2]
[312149743,1705669871056,-500.0,0.00022739,2]
[312149744,1705669871066,-1406.79,0.00022739,2]
[312149745,1705669871076,-500.0,0.00022739,2]
[312149746,1705669871085,-1676.68,0.00022739,2]
[312149747,1705669871095,-500.0,0.00022739,2]
[312149748,1705669871106,-722.53,0.00022739,2]
[312149749,1705669871116,-500.0,0.00022739,2]
[312149750,1705669871126,-528.2,0.00022739,2]
[312149751,1705669871135,-1258.05,0.00022739,2]
[312149752,1705669871144,-500.0,0.00022739,2]
[312149753,1705669871154,-536.55,0.00022739,2]
[312149754,1705669871164,-591.46,0.00022739,2]
[312149755,1705669871174,-608.29953454,0.00022739,2]
[312149756,1705669871184,-1526.19,0.00022739,2]
[312149757,1705669871194,-1185.94,0.00022739,2]
[312149758,1705669871204,-3581.47,0.00022739,2]
[312149759,1705669871214,-500.0,0.00022739,2]
[312149760,1705669871224,-12146.1,0.00022739,2]
[312149761,1705669871234,-354.44528481,0.00022739,2]
[312149762,1705669871244,-2612.2,0.00022739,2]
[312149763,1705669871254,-1237.18,0.00022739,2]
[312149764,1705669871264,-1056.03,0.00022739,2]
[312149765,1705669871274,-858.97,0.00022739,2]
[312149766,1705669871284,-656.1,0.00022739,2]
[312149767,1705669871294,-2469.05,0.00022739,2]
[312149768,1705669871304,-500.0,0.00022739,2]
[312149769,1705669871314,-500.0,0.00022739,2]
[312149770,1705669871325,-9252.78,0.00022739,2]
[312149771,1705669871334,-602.84,0.00022739,2]
[312149772,1705669871344,-500.0,0.00022739,2]
[312149773,1705669871355,-15248.18,0.00022739,2]
[312149774,1705669871364,-8551.06,0.00022739,2]
[312149775,1705669871374,-2574.37,0.00022739,2]
[312149776,1705669871385,-500.0,0.00022739,2]
[312149777,1705669871395,-767.02,0.00022739,2]
[312149778,1705669871405,-577.79,0.00022739,2]
[312149779,1705669871415,-1439.62,0.00022739,2]
[312149780,1705669871425,-543.58,0.00022739,2]
[312149781,1705669871436,-1848.98,0.00022739,2]
[312149782,1705669871446,-1228.0,0.00022739,2]
[312149783,1705669871456,-2267.31,0.00022739,2]
[312149784,1705669871466,-335.59,0.00022739,2]
[312149785,1705669871476,-574.86,0.00022739,2]
[312149786,1705669871486,-3257.42,0.00022739,2]
[312149787,1705669871496,-894.19,0.00022739,2]
[312149788,1705669871505,-500.0,0.00022739,2]
[312149789,1705669871515,-585.55,0.00022739,2]
[312149790,1705669871525,-2231.87,0.00022739,2]
[312149791,1705669871535,-5684.2,0.00022739,2]
[312149792,1705669871545,-1414.02,0.00022739,2]
[312149793,1705669871556,-939.86,0.00022739,2]
[312149794,1705669871566,-500.0,0.00022739,2]
[312149795,1705669871577,-580.2,0.00022739,2]
[312149796,1705669871587,-500.0,0.00022739,2]
[312149797,1705669871597,-2102.76,0.00022739,2]
[312149798,1705669871607,-500.0,0.00022739,2]
[312149799,1705669871618,-500.0,0.00022739,2]
[312149800,1705669871628,-4658.46,0.00022739,2]
[312149801,1705669871638,-1984.44,0.00022739,2]
[312149802,1705669871649,-1931.43,0.00022739,2]
[312149803,1705669871659,-3439.18,0.00022739,2]
[312149804,1705669871669,-2207.47,0.00022739,2]
[312149805,1705669871679,-1100.23,0.00022739,2]
[312149806,1705669871690,-500.0,0.00022739,2]
[312149807,1705669871699,-500.0,0.00022739,2]
[312149808,1705669871709,-639.82,0.00022739,2]
[312149809,1705669871719,-500.0,0.00022739,2]
[312149810,1705669871729,-644.68,0.00022739,2]
[312149811,1705669871739,-500.0,0.00022739,2]
[312149812,1705669871749,-544.1117531,0.00022739,2]
[312149813,1705669871759,-500.0,0.00022739,2]
[312149814,1705669871769,-500.0,0.00022739,2]
[312149815,1705669871780,-500.0,0.00022739,2]
[312149816,1705669871790,-759.77,0.00022739,2]
[312149817,1705669871802,-1956.81,0.00022739,2]
[312149818,1705669871811,-500.0,0.00022739,2]
[312149819,1705669871821,-986.14,0.00022739,2]
[312149820,1705669871831,-534.94,0.00022739,2]
[312149821,1705669871841,-686.98,0.00022739,2]
[312149822,1705669871852,-549.98,0.00022739,2]
[312149823,1705669871861,-916.9,0.00022739,2]
[312149824,1705669871871,-869.67,0.00022739,2]
[312149825,1705669871881,-7071.93,0.00022739,2]
[312149826,1705669871890,-2963.64,0.00022739,2]
[312149827,1705669871900,-1215.68,0.00022739,2]
[312149828,1705669871909,-1525.76,0.00022739,2]
[312149829,1705669871918,-621.36,0.00022739,2]
[312149830,1705669871927,-500.0,0.00022739,2]
[312149831,1705669871936,-500.0,0.00022739,2]
[312149832,1705669871946,-2140.94,0.00022739,2]
[312149833,1705669871955,-710.71,0.00022739,2]
[312149834,1705669871965,-842.67,0.00022739,2]
[312149835,1705669871974,-549.3,0.00022739,2]
[312149836,1705669871984,-4445.96,0.00022739,2]
[312149837,1705669871993,-500.0,0.00022739,2]
[312149838,1705669872002,-4442.84,0.00022739,2]
[312149839,1705669872013,-3252.64,0.00022739,2]
[312149840,1705669872023,-9432.03,0.00022739,2]
[312149841,1705669872033,-1494.52,0.00022739,2]
[312149842,1705669872042,-500.0,0.00022739,2]
[312149843,1705669872051,-2305.27,0.00022739,2]
[312149844,1705669872061,-1994.22,0.00022739,2]
[312149845,1705669872071,-333.18173879,0.00022739,2]
[312149846,1705669872081,-785.42,0.00022739,2]
[312149847,1705669872090,-544.14,0.00022739,2]
[312149848,1705669872100,-15331.08,0.00022739,2]
[312149849,1705669872110,-37740.3,0.00022739,2]
[312149850,1705669872120,-171.65318506,0.00022739,2]
[312149851,1705669872130,-575.23,0.00022739,2]
[312149852,1705669872139,-3240.46,0.00022739,2]
[312149853,1705669872149,-500.0,0.00022739,2]
[312149854,1705669872159,-664.75,0.00022739,2]
[312149855,1705669872168,-500.0,0.00022739,2]
[312149856,1705669872178,-500.0,0.00022739,2]
[312149857,1705669872187,-500.0,0.00022739,2]
[312149858,1705669872197,-500.0,0.00022739,2]
[312149859,1705669872206,-500.0,0.00022739,2]
[312149860,1705669872216,-1196.75,0.00022739,2]
[312149861,1705669872225,-500.0,0.00022739,2]
[312149862,1705669872234,-1846.5,0.00022739,2]
[312149863,1705669872244,-665.6,0.00022739,2]
[312149864,1705669872253,-2652.58,0.00022739,2]
[312149865,1705669872262,-2233.52,0.00022739,2]
[312149866,1705669872271,-538.09,0.00022739,2]
[312149867,1705669872281,-534.50184495,0.00022739,2]
[312149868,1705669872290,-1124.95,0.00022739,2]
[312149869,1705669872299,-808.35,0.00022739,2]
[312149870,1705669872309,-500.0,0.00022739,2]
[312149871,1705669872318,-3944.13,0.00022739,2]
[312149872,1705669872328,-1635.99,0.00022739,2]
[312149873,1705669872337,-573.95,0.00022739,2]
[312149874,1705669872347,-750.32,0.00022739,2]
[312149875,1705669872357,-1281.81,0.00022739,2]
[312149876,1705669872367,-4547.59,0.00022739,2]
[312149877,1705669872376,-500.0,0.00022739,2]
[312149878,1705669872386,-500.0,0.00022739,2]
[312149879,1705669872396,-8425.91,0.00022739,2]
[312149880,1705669872406,-500.0,0.00022739,2]
[312149881,1705669872416,-466.75446405,0.00022739,2]
[312149882,1705669872426,-506.59,0.00022739,2]
[312149883,1705669872438,-754.61,0.00022739,2]
[312149884,1705669872447,-1705.42,0.00022739,2]
[312149885,1705669872457,-780.91,0.00022739,2]
[312149886,1705669872467,-591.74,0.00022739,2]
[312149887,1705669872476,-574.32,0.00022739,2]
[312149888,1705669872486,-1313.23,0.00022739,2]
[312149889,1705669872496,-500.0,0.00022739,2]
[312149890,1705669872506,-2028.69,0.00022739,2]
[312149891,1705669872516,-500.0,0.00022739,2]
[312149892,1705669872526,-633.91,0.00022739,2]
[312149893,1705669872535,-9076.22,0.00022739,2]
[312149894,1705669872545,-500.0,0.00022739,2]
[312149895,1705669872555,-924.14,0.00022739,2]
[312149896,1705669872565,-526.59,0.00022739,2]
[312149897,1705669872575,-500.0,0.00022739,2]
[312149898,1705669872585,-2029.72,0.00022739,2]
[312149899,1705669872595,-500.0,0.00022739,2]
[312149900,1705669872605,-981.27,0.00022739,2]
[312149901,1705669872615,-826.71,0.00022739,2]
[312149902,1705669872624,-1960.9,0.00022739,2]
[312149903,1705669872634,-500.0,0.00022739,2]
[312149904,1705669872644,-4783.55,0.00022739,2]
[312149905,1705669872654,-835.31,0.00022739,2]
[312149906,1705669872664,-500.0,0.00022739,2]
[312149907,1705669872673,-1577.31,0.00022739,2]
[312149908,1705669872683,-5207.41,0.00022739,2]
[312149909,1705669872693,-500.0,0.00022739,2]
[312149910,1705669872702,-500.0,0.00022739,2]
[312149911,1705669872712,-500.0,0.00022739,2]
[312149912,1705669872722,-3855.72,0.00022739,2]
[312149913,1705669872732,-500.0,0.00022739,2]
[312149914,1705669872742,-685.58,0.00022739,2]
[312149915,1705669872752,-1179.28,0.00022739,2]
[312149916,1705669872762,-793.67,0.00022739,2]
[312149917,1705669872772,-813.09,0.00022739,2]
[312149918,1705669872782,-583.17,0.00022739,2]
[312149919,1705669872792,-2276.82,0.00022739,2]
[312149920,1705669872802,-3177.97,0.00022739,2]
[312149921,1705669872812,-3710.39,0.00022739,2]
[312149922,1705669872822,-500.0,0.00022739,2]
[312149923,1705669872831,-500.0,0.00022739,2]
[312149924,1705669872842,-660.03,0.00022739,2]
[312149925,1705669872852,-550.62,0.00022739,2]
[312149926,1705669872861,-2628.92,0.00022739,2]
[312149927,1705669872871,-19369.32,0.00022739,2]
[312149928,1705669872883,-638.69,0.00022739,2]
[312149929,1705669872893,-500.0,0.00022739,2]
[312149930,1705669872902,-1034.13,0.00022739,2]
[312149931,1705669872912,-2000.88,0.00022739,2]
[312149932,1705669872921,-2148.61,0.00022739,2]
[312149933,1705669872931,-500.0,0.00022739,2]
[312149934,1705669872940,-500.0,0.00022739,2]
[312149935,1705669872951,-25482.51,0.00022739,2]
[312149936,1705669872961,-1717.53,0.00022739,2]
[312149937,1705669872970,-500.0,0.00022739,2]
[312149938,1705669872980,-500.0,0.00022739,2]
[312149939,1705669872990,-1264.98,0.00022739,2]
[312149940,1705669872999,-500.0,0.00022739,2]
[312149941,1705669873009,-746.64,0.00022739,2]
[312149942,1705669873019,-500.0,0.00022739,2]
[312149943,1705669873029,-1739.34,0.00022739,2]
[312149944,1705669873038,-1153.95,0.00022739,2]
[312149945,1705669873049,-500.0,0.00022739,2]
[312149946,1705669873059,-1444.66,0.00022739,2]
[312149947,1705669873069,-4305.99,0.00022739,2]
[312149948,1705669873079,-721.93,0.00022739,2]
[312149949,1705669873089,-1568.86,0.00022739,2]
[312149950,1705669873099,-1301.31,0.00022739,2]
[312149951,1705669873108,-500.0,0.00022739,2]
[312149952,1705669873118,-1193.88,0.00022739,2]
[312149953,1705669873127,-855.93,0.00022739,2]
[312149954,1705669873137,-500.0,0.00022739,2]
[312149955,1705669873146,-1184.09,0.00022739,2]
[312149956,1705669873156,-1441.39,0.00022739,2]
[312149957,1705669873165,-2315.09,0.00022739,2]
[312149958,1705669873175,-2117.61,0.00022739,2]
[312149959,1705669873185,-980.44,0.00022739,2]
[312149960,1705669873194,-2124.5,0.00022739,2]
[312149961,1705669873204,-3846.66,0.00022739,2]
[312149962,1705669873214,-1637.31,0.00022739,2]
[312149963,1705669873224,-513.8,0.00022739,2]
[312149964,1705669873234,-757.52,0.00022739,2]
[312149965,1705669873243,-500.0,0.00022739,2]
[312149966,1705669873253,-500.0,0.00022739,2]
[312149967,1705669873263,-883.7,0.00022739,2]
[312149968,1705669873273,-1482.25,0.00022739,2]
[312149969,1705669873283,-2977.49,0.00022739,2]
[312149970,1705669873293,-315.83546503,0.00022739,2]
[312149971,1705669873303,-2766.49,0.00022739,2]
[312149972,1705669873312,-1781.63,0.00022739,2]
[312149973,1705669873322,-500.0,0.00022739,2]
[312149974,1705669873333,-500.0,0.00022739,2]
[312149975,1705669873342,-660.55,0.00022739,2]
[312149976,1705669873352,-661.91,0.00022739,2]
[312149977,1705669873362,-537.32,0.00022739,2]
[312149978,1705669873371,-567.18,0.00022739,2]
[312149979,1705669873381,-500.0,0.00022739,2]
[312149980,1705669873391,-500.0,0.00022739,2]
[312149981,1705669873400,-761.41,0.00022739,2]
[312149982,1705669873410,-857.58,0.00022739,2]
[312149983,1705669873419,-1153.39,0.00022739,2]
[312149984,1705669873429,-649.92,0.00022739,2]
[312149985,1705669873439,-664.67,0.00022739,2]
[312149986,1705669873449,-2418.64,0.00022739,2]
[312149987,1705669873458,-1464.05,0.00022739,2]
[312149988,1705669873467,-8804.12,0.00022739,2]
[312149989,1705669873477,-4399.62,0.00022739,2]
[312149990,1705669873487,-904.22,0.00022739,2]
[312149991,1705669873497,-500.0,0.00022739,2]
[312149992,1705669873507,-2042.08,0.00022739,2]
[312149993,1705669873517,-1033.87,0.00022739,2]
[312149994,1705669873527,-1340.55,0.00022739,2]
[312149995,1705669873537,-4233.95,0.00022739,2]
[312149996,1705669873547,-1827.3,0.00022739,2]
[312149997,1705669873557,-500.0,0.00022739,2]
[312149998,1705669873567,-1837.39,0.00022739,2]
[312149999,1705669873577,-760.36,0.00022739,2]
[312150000,1705669873586,-1378.23,0.00022739,2]
[312150001,1705669873596,-500.0,0.00022739,2]
[312150002,1705669873608,-500.0,0.00022739,2]
[312150003,1705669873618,-2761.46,0.00022739,2]
[312150004,1705669873628,-938.71,0.00022739,2]
[312150005,1705669873638,-1397.44,0.00022739,2]
[312150006,1705669873648,-1091.57,0.00022739,2]
[312150007,1705669873658,-500.0,0.00022739,2]
[312150008,1705669873668,-500.0,0.00022739,2]
[312150009,1705669873678,-1145.22,0.00022739,2]
[312150010,1705669873689,-2230.55,0.00022739,2]
[312150011,1705669873699,-2441.81,0.00022739,2]
[312150012,1705669873709,-500.0,0.00022739,2]
[312150013,1705669873721,-4496.97,0.00022739,2]
[312150014,1705669873731,-500.0,0.00022739,2]
[312150015,1705669873742,-500.0,0.00022739,2]
[312150016,1705669873752,-915.54,0.00022739,2]
[312150017,1705669873761,-1052.49,0.00022739,2]
[312150018,1705669873771,-500.0,0.00022739,2]
[312150019,1705669873780,-999.66,0.00022739,2]
[312150020,1705669873791,-1236.9,0.00022739,2]
[312150021,1705669873802,-7568.94,0.00022739,2]
[312150022,1705669873811,-1813.55,0.00022739,2]
[312150023,1705669873821,-1397.72,0.00022739,2]